lending/lending_fUSD_20240522
["ID","MTS","AMOUNT","RATE_DAILY","PERIOD"]
[327738624,1716409840495,-1400.0,0.00020523,2]
[327738625,1716409840506,-1000.0,0.00020546,2]
[327738626,1716409840517,-276.78,0.00020546,2]
[327738627,1716409840538,-19925.35,0.00020548,2]
[327738628,1716409840549,-166.32,0.00020552,2]
[327738629,1716409840559,-170.05,0.00020625,2]
[327738630,1716409840569,-3739.19553943,0.00020666,2]
[327738631,1716409840579,-717.9371715,0.00021,2]
[327738632,1716409840590,-1750.0,0.00021,2]
[327738633,1716409840600,-1000.0,0.00021044,5]
[327738634,1716409840610,-1000.0,0.00021044,5]
[327738635,1716409840622,-1000.0,0.00021044,5]
[327738636,1716409840632,-1000.0,0.00021055,5]
[327738637,1716409840642,-1000.0,0.00021094,2]
[327738638,1716409840652,-3739.19553943,0.00021195,2]
[327738639,1716409840662,-156.92,0.00021209,2]
[327738640,1716409840671,-454.156,0.00021264,2]
[327738641,1716409840681,-168.22761382,0.00021346,2]
[327738642,1716409840691,-155.0,0.00021373,2]
[327738643,1716409840701,-294.97100717,0.00021439,2]
[327738644,1716409840710,-972.35078202,0.00021588,2]
[327738645,1716409840719,-1000.0,0.00021588,2]
[327738646,1716409840729,-1000.0,0.00021588,2]
[327738647,1716409840738,-1000.0,0.00021588,5]
[327738648,1716409840748,-4653.12139266,0.00021589,2]
[327738649,1716409840758,-889.56773944,0.00021589,2]
[327738650,1716409840768,-257.11879413,0.00021589,2]
[327738651,1716409840778,-1039.40241281,0.00021589,2]
[327738652,1716409840787,-500.0,0.00021589,2]
[327738653,1716409840797,-1043.83643081,0.00021589,2]
[327738654,1716409840806,-200.0,0.00021589,2]
[327738655,1716409840816,-445.41817332,0.00021589,2]
[327738656,1716409840825,-37481.60438299,0.00021589,2]
[327738657,1716409840835,-1000.0,0.00021642,2]
[327738658,1716409840844,-3739.19553943,0.00021724,2]
[327738659,1716409840854,-6771.4801469,0.000219,2]
[327738660,1716409840866,-1000.0,0.000219,2]
[327738661,1716409840876,-700.0,0.00021916,2]
[327738662,1716409840886,-500.0,0.00021916,2]
[327738663,1716409840896,-1186.58,0.00021918,2]
[327738664,1716409840905,-767.23,0.00021918,2]
[327738665,1716409840915,-163.86,0.00021918,2]
[327738666,1716409840924,-2000.0,0.00021918,2]
[327738667,1716409840933,-697.34032449,0.00022,2]
[327738668,1716409840943,-155.263172,0.00022,3]
[327738669,1716409840953,-157.51322458,0.00022051,2]
[327738670,1716409840963,-157.51322458,0.00022052,2]
[327738671,1716409840972,-173.50293998,0.00022098,2]
[327738672,1716409840982,-1291.50389298,0.00022104,2]
[327738673,1716409840991,-191.48727825,0.00022108,2]
[327738674,1716409841001,-332.37264762,0.00022121,2]
[327738675,1716409841010,-154.96503138,0.00022144,2]
[327738676,1716409841019,-779.12495382,0.0002218,2]
[327738677,1716409841029,-1000.0,0.0002219,2]
[327738678,1716409841039,-158.52692095,0.00022251,2]
[327738679,1716409841048,-3739.19553943,0.00022254,2]
[327738680,1716409841057,-154.96503138,0.00022291,2]
[327738681,1716409841068,-779.12495382,0.00022368,2]
[327738682,1716409841078,-1291.50389298,0.00022381,2]
[327738683,1716409841089,-332.37264762,0.00022402,2]
[327738684,1716409841098,-779.12495382,0.00022424,2]
[327738685,1716409841108,-155.19421787,0.00022424,2]
[327738686,1716409841120,-700.0,0.00022464,2]
[327738687,1716409841129,-454.156,0.00022495,2]
[327738688,1716409841139,-150.0,0.000225,3]
[327738689,1716409841149,-524.28,0.00022509,2]
[327738690,1716409841158,-524.28,0.00022509,2]
[327738691,1716409841168,-390.27,0.00022509,2]
[327738692,1716409841178,-155.19421787,0.00022514,2]
[327738693,1716409841186,-157.51322458,0.0002252,2]
[327738694,1716409841195,-779.12495382,0.00022522,2]
[327738695,1716409841205,-152.94952193,0.00022555,2]
[327738696,1716409841214,-157.51322458,0.00022596,2]
[327738697,1716409841223,-166.32,0.00022607,2]
[327738698,1716409841233,-168.22761382,0.00022623,2]
[327738699,1716409841242,-163.97443191,0.00022632,2]
[327738700,1716409841251,-294.97100717,0.0002267,2]
[327738701,1716409841261,-418.24698787,0.00022677,2]
[327738702,1716409841270,-168.02233263,0.00022701,2]
[327738703,1716409841279,-150.09523981,0.00022722,2]
[327738704,1716409841290,-1000.0,0.00022738,2]
[327738705,1716409841299,-159.03061843,0.00022753,2]
[327738706,1716409841309,-418.24698787,0.00022772,2]
[327738707,1716409841319,-3739.19553943,0.00022783,2]
[327738708,1716409841328,-276.78,0.0002281,2]
[327738709,1716409841338,-157.4269822,0.00022828,2]
[327738710,1716409841347,-153.18821613,0.00022877,2]
[327738711,1716409841357,-1000.0,0.00022898,5]
[327738712,1716409841368,-546.4202,0.000229,2]
[327738713,1716409841378,-20282.2888,0.000229,2]
[327738714,1716409841388,-332.37264762,0.00022912,2]
[327738715,1716409841397,-154.96503138,0.00022929,2]
[327738716,1716409841407,-191.48727825,0.00022982,2]
[327738717,1716409841416,-1291.50389298,0.00022983,2]
[327738718,1716409841425,-1000.0,0.00022998,5]
[327738719,1716409841435,-1000.0,0.00022999,5]
[327738720,1716409841444,-1029.94791917,0.00022999,5]
[327738721,1716409841454,-5511.49091993,0.00023,2]
[327738722,1716409841463,-1800.0,0.00023,2]
[327738723,1716409841473,-150.0,0.00023,3]
[327738724,1716409841483,-500.0,0.00023012,2]
[327738725,1716409841493,-700.0,0.00023012,2]
[327738726,1716409841503,-152.76128862,0.00023049,2]
[327738727,1716409841512,-159.14397516,0.00023157,2]
[327738728,1716409841523,-779.12495382,0.00023177,2]
[327738729,1716409841537,-153.18821613,0.00023206,2]
[327738730,1716409841546,-1291.50389298,0.00023215,2]
[327738731,1716409841556,-332.37264762,0.00023222,2]
[327738732,1716409841567,-1000.0,0.00023231,2]
[327738733,1716409841576,-10000.0,0.00023231,2]
[327738734,1716409841585,-1000.0,0.00023286,2]
[327738735,1716409841595,-157.264026,0.00023288,2]
[327738736,1716409841605,-155.19421787,0.00023309,2]
[327738737,1716409841619,-200.0,0.00023312,2]
[327738738,1716409841628,-1000.0,0.00023312,2]
[327738739,1716409841639,-200.0,0.00023312,2]
[327738740,1716409841648,-3739.19553943,0.00023312,2]
[327738741,1716409841657,-152.76128862,0.00023366,2]
[327738742,1716409841666,-418.24698787,0.00023383,2]
[327738743,1716409841675,-2004.82313321,0.000234,2]
[327738744,1716409841684,-500.0,0.000234,2]
[327738745,1716409841694,-155.19421787,0.00023428,2]
[327738746,1716409841703,-150.0,0.000235,3]
[327738747,1716409841714,-1291.50389298,0.00023504,2]
[327738748,1716409841724,-191.48727825,0.00023507,2]
[327738749,1716409841734,-1400.0,0.00023523,2]
[327738750,1716409841744,-159.03061843,0.00023558,2]
[327738751,1716409841754,-700.0,0.0002356,2]
[327738752,1716409841764,-157.51322458,0.00023662,2]
[327738753,1716409841774,-153.18821613,0.00023668,2]
[327738754,1716409841783,-779.12495382,0.00023672,2]
[327738755,1716409841792,-418.24698787,0.00023683,2]
[327738756,1716409841800,-153.98057684,0.00023699,2]
[327738757,1716409841809,-380.41775474,0.00023718,2]
[327738758,1716409841818,-165.4023761,0.00023744,2]
[327738759,1716409841826,-268.65341082,0.0002375,2]
[327738760,1716409841835,-19028.02663422,0.0002376,2]
[327738761,1716409841845,-1192.683,0.0002376,2]
[327738762,1716409841855,-152.76128862,0.0002376,2]
[327738763,1716409841867,-3739.19553943,0.00023841,2]
[327738764,1716409841877,-332.37264762,0.00023854,2]
[327738765,1716409841887,-5800.0,0.00023858,2]
[327738766,1716409841896,-454.156,0.00023862,2]
[327738767,1716409841905,-5800.0,0.00023866,2]
[327738768,1716409841915,-157.51322458,0.0002387,2]
[327738769,1716409841925,-5800.0,0.00023875,2]
[327738770,1716409841935,-5800.0,0.00023883,2]
[327738771,1716409841944,-16000.0,0.00023891,2]
[327738772,1716409841954,-58000.0,0.00023891,2]
[327738773,1716409841963,-5800.0,0.00023892,2]
[327738774,1716409841973,-4078.79805909,0.00023899,2]
[327738775,1716409841983,-193.19960708,0.00023899,2]
[327738776,1716409841992,-4078.79805909,0.000239,2]
[327738777,1716409842001,-5800.0,0.000239,2]
[327738778,1716409842011,-16000.0,0.000239,2]
[327738779,1716409842020,-168.53006914,0.000239,2]
[327738780,1716409842030,-58000.0,0.000239,2]
[327738781,1716409842039,-294.97100717,0.000239,2]
[327738782,1716409842049,-7100.840285,0.000239,2]
[327738783,1716409842058,-172.68941544,0.000239,2]
[327738784,1716409842068,-494.34178852,0.000239,2]
[327738785,1716409842077,-4078.79805909,0.000239,2]
[327738786,1716409842087,-728.96738576,0.000239,8]
[327738787,1716409842096,-168.22761382,0.000239,2]
[327738788,1716409842106,-157.51322458,0.00023945,2]
[327738789,1716409842118,-157.51322458,0.00023948,2]
[327738790,1716409842128,-191.48727825,0.00023966,2]
[327738791,1716409842138,-157.51322458,0.00023966,2]
[327738792,1716409842148,-150.5,0.00023969,15]
[327738793,1716409842159,-150.5,0.00023979,15]
[327738794,1716409842168,-6933.2811733,0.00023985,2]
[327738795,1716409842178,-43163.4033629,0.00023985,2]
[327738796,1716409842187,-7681.3846604,0.00023985,2]
[327738797,1716409842197,-361.9730716,0.00023985,2]
[327738798,1716409842206,-150.5,0.00023989,15]
[327738799,1716409842216,-268.65341082,0.00023989,2]
[327738800,1716409842225,-232.33,0.0002399,15]
[327738801,1716409842235,-153.18821613,0.00023991,2]
[327738802,1716409842245,-324.60531445,0.00023997,2]
[327738803,1716409842254,-200.41196387,0.00023997,2]
[327738804,1716409842264,-200.84001828,0.00023997,2]
[327738805,1716409842274,-221.96329137,0.00023997,2]
[327738806,1716409842284,-163.09696048,0.00023997,2]
[327738807,1716409842293,-410.2190037,0.00023997,2]
[327738808,1716409842303,-155.0,0.00023997,2]
[327738809,1716409842313,-181.29788502,0.00023997,2]
[327738810,1716409842322,-155.87069556,0.00023997,2]
[327738811,1716409842332,-285.26513756,0.00023997,2]
[327738812,1716409842341,-166.00360702,0.00023997,2]
[327738813,1716409842351,-2000.27992103,0.00023997,2]
[327738814,1716409842360,-200.0,0.00023997,2]
[327738815,1716409842374,-165.53963886,0.00023997,2]
[327738816,1716409842384,-155.25632263,0.00023997,2]
[327738817,1716409842394,-598.4676915,0.00023997,2]
[327738818,1716409842404,-156.27424885,0.00023997,2]
[327738819,1716409842414,-299.47989512,0.00023997,2]
[327738820,1716409842424,-155.08919033,0.00023997,2]
[327738821,1716409842433,-1213.37270844,0.00023997,2]
[327738822,1716409842443,-586.02670326,0.00023997,2]
[327738823,1716409842452,-155.76867218,0.00023997,2]
[327738824,1716409842462,-155.0,0.00023997,2]
[327738825,1716409842471,-155.32597245,0.00023997,2]
[327738826,1716409842481,-782.14748573,0.00023997,2]
[327738827,1716409842490,-155.15682615,0.00023997,2]
[327738828,1716409842500,-306.03142817,0.00023998,2]
[327738829,1716409842510,-2479.51367591,0.00023998,2]
[327738830,1716409842523,-684.79514313,0.00023998,2]
[327738831,1716409842535,-205.39675001,0.00023998,2]
[327738832,1716409842545,-482912.93363944,0.00023999,11]
[327738833,1716409842555,-220534.30104142,0.00023999,2]
[327738834,1716409842566,-543104.43885311,0.00023999,2]
[327738835,1716409842576,-2496.42907446,0.00023999,2]
[327738836,1716409842586,-150.0,0.00023999,2]
[327738837,1716409842597,-151.0,0.00024,2]
[327738838,1716409842607,-235.08203238,0.00024,2]
[327738839,1716409842622,-2634.48485848,0.00024,5]
[327738840,1716409842631,-1282527.69789499,0.00024,5]
[327738886,1716409843142,-149471.55430159,0.00024,5]
[327738888,1716409843154,-199439.61688188,0.00024,5]
[327738890,1716409843166,-19418.92948426,0.00024,5]
[327738896,1716409843215,-155.0,0.00012983,2]
[327738898,1716409843225,-2751.0,0.00013699,2]
[327738899,1716409843236,-102545.69326632,0.00024,5]
[327738900,1716409843248,-926.890117,0.00024,5]
[327738901,1716409843432,158.09210317,0.0001235,2]
[327738902,1716409843494,-2805.24968738,0.00024,5]
[327738903,1716409843506,-572.78982099,0.00024,5]
[327738905,1716409844108,-21031.59728268,0.00024,5]
[327738906,1716409844129,-3961.70998469,0.00024,5]
[327738907,1716409844148,-4974.11008049,0.00024,5]
[327738908,1716409844312,-55000.0,0.00019178,2]
[327738909,1716409844322,-34359.57652905,0.00024,5]
[327738910,1716409844337,-161573.97865675,0.00024,5]
[327738911,1716409844349,-485.80568,0.00024,5]
[327738912,1716409844362,-8740.41945,0.00024,5]
[327738913,1716409844379,-482.67927849,0.00024,5]
[327738914,1716409844392,-827.80748492,0.00024,5]
[327738915,1716409844539,-1502.25651494,0.00024,5]
[327738916,1716409844553,-67638.36763803,0.00024,5]
[327738917,1716409844567,-272.32767064,0.00024,5]
[327738918,1716409844738,-372.86000006,0.00024,5]
[327738919,1716409844837,-3179.5383,0.00024,5]
[327738920,1716409844850,-70189.17439525,0.00024,5]
[327738922,1716409846134,-1061.0,0.00016258,2]
[327738923,1716409846144,-660.9,0.00019258,2]
[327738924,1716409846156,-398.1,0.00019258,2]
[327738925,1716409846166,-6415.69465123,0.00023897,2]
[327738926,1716409846178,-2957.21493839,0.00023897,2]
[327738927,1716409846193,-627.09041038,0.00023897,2]
[327738928,1716409846203,-11195.86770976,0.00024,5]
[327738929,1716409846215,-8613.93726085,0.00024,5]
[327738941,1716409846977,-1642.0,0.00016258,2]
[327738943,1716409846986,-85352.77528057,0.00024,5]
[327738947,1716409847036,-1658.72364799,0.00024,5]
[327738948,1716409865400,1117.96087072,0.0001235,2]
[327738952,1716410015250,156.19,0.00021589,30]
[327738953,1716410015665,156.19,0.00025894,30]
[327738970,1716410353350,259.21,0.00012711,2]
[327738978,1716410493432,156.19,0.00021589,30]
[327738979,1716410493817,156.19,0.00026612,30]
[327738992,1716410904304,246.24,0.00012553,2]
[327739002,1716410982574,156.19,0.00021589,30]
[327739003,1716410983384,156.19,0.00027616,30]
[327739025,1716411032251,-3133.51562735,0.00012897,2]
[327739029,1716411032345,-696.67104596,0.00012897,2]
[327739031,1716411032485,-1079.8739065,0.00012897,2]
[327739032,1716411032498,-900.0,0.00012897,2]
[327739049,1716411038274,-1084.17957934,0.00012897,2]
[327739050,1716411038286,-701.89106013,0.00012897,2]
[327739051,1716411038297,-298.9533,0.00012897,2]
[327739052,1716411038316,-91.72273991,0.00012897,2]
[327739053,1716411038327,-155.0,0.00012898,2]
[327739054,1716411038337,-1385.90735399,0.00012899,2]
[327739055,1716411038346,-1992.37097807,0.000129,2]
[327739056,1716411038355,-321.35198546,0.000129,2]
[327739057,1716411038364,-150.0,0.00012959,2]
[327739058,1716411038373,-193.19960708,0.00012969,2]
[327739059,1716411038382,-790.00185035,0.00012987,2]
[327739060,1716411038392,-4598.92098686,0.00012996,2]
[327739061,1716411038401,-1501.77727144,0.00012998,2]
[327739062,1716411038410,-37068.81445436,0.00012999,2]
[327739072,1716411038636,-4933.97916893,0.00012999,2]
[327739074,1716411038648,-19849.1196159,0.00012999,2]
[327739078,1716411038682,-1486.4935766,0.00012999,2]
[327739126,1716411040527,-204037.53332638,0.00012999,2]
[327739127,1716411040581,-4420.72500002,0.00012999,2]
[327739128,1716411040987,-12.24712663,0.00012999,2]
[327739129,1716411041001,-13015.0837516,0.00012999,2]
[327739130,1716411041588,-536.48861483,0.00012999,2]
[327739175,1716411043500,-372712.63359454,0.00012999,2]
[327739176,1716411043514,-302.09356369,0.00012999,2]
[327739211,1716411044208,-30505.01983598,0.00012999,2]
[327739213,1716411044218,-499.99,0.00012999,2]
[327739215,1716411044227,-493859.48365152,0.00013,2]
[327739217,1716411044237,-245555.34350236,0.00013,2]
[327739221,1716411044267,-226261.25391408,0.00013,2]
[327739223,1716411044279,-1572.5001,0.00013,2]
[327739344,1716411047039,-29917.45886401,0.00013,2]
[327739345,1716411047051,-5221.52060909,0.00013,2]
[327739346,1716411047062,-19840.83385625,0.00013,2]
[327739347,1716411047074,-8036.765211,0.00013,2]
[327739348,1716411047087,-138999.00000002,0.00013,2]
[327739349,1716411047128,-375.11,0.00013,2]
[327739350,1716411047140,-2734.71085841,0.00013,2]
[327739351,1716411047151,-909.18055416,0.00013,2]
[327739352,1716411047184,-270.462826,0.00013,2]
[327739353,1716411047195,-1748.9835148,0.00013,2]
[327739355,1716411052834,1074.61897376,0.00012999,3]
[327739372,1716411168750,452.09796917,0.00011567,2]
[327739373,1716411173155,202.99,0.00010959,2]
[327739374,1716411182256,2548.44455282,9.749e-05,2]
[327739375,1716411183936,169.16,0.00010959,2]
[327739376,1716411186091,423.50395095,0.00011697,2]
[327739377,1716411192563,2605.38794838,0.00012739,2]
[327739378,1716411194467,845.83,0.00010959,2]
[327739379,1716411195300,452.09796917,0.00011567,2]
[327739380,1716411201700,1230.27698461,0.00029,120]
[327739381,1716411202338,1195.19114104,9.749e-05,2]
[327739382,1716411206563,2605.38794838,0.00012739,2]
[327739386,1716411209881,751.32226351,0.00011697,2]
[327739387,1716411212742,452.09796917,0.00011567,2]
[327739388,1716411212879,180.23015503,0.00011567,2]
[327739389,1716411217111,19734.40747855,0.00011567,2]
[327739391,1716411222604,409.86295543,0.00011567,2]
[327739392,1716411222635,1253.46258855,0.00012,2]
[327739393,1716411223138,318022.6284691,0.00011567,2]
[327739394,1716411223159,229703.26181024,0.00011567,2]
[327739395,1716411225857,402.31121203,0.00011697,2]
[327739396,1716411226869,180.24970991,0.00011567,2]
[327739397,1716411232748,452.09796917,0.00011567,2]
[327739398,1716411233129,19734.40747855,0.00011567,2]
[327739399,1716411234419,132079.09331925,0.00011567,2]
[327739400,1716411236166,409.86295543,0.00011567,2]
[327739401,1716411249118,177.76844394,0.00011567,2]
[327739402,1716411250750,452.09796917,0.00011567,2]
[327739403,1716411253099,167.5,0.00010561,2]
[327739404,1716411258304,327.25935791,0.00011567,2]
[327739405,1716411268937,232.63191071,0.00011567,2]
[327739406,1716411378162,337.47,0.00011182,2]
[327739407,1716411389784,157.052305,0.00028,30]
[327739408,1716411398230,157.052305,0.00028,30]
[327739409,1716411399361,157.052305,0.00028,30]
[327739410,1716411400252,157.052305,0.00028,30]
[327739411,1716411401148,157.052305,0.00028,30]
[327739412,1716411403154,157.052305,0.00028,30]
[327739413,1716411403868,157.052305,0.00028,30]
[327739414,1716411405472,157.052305,0.00028,30]
[327739415,1716411412344,157.052305,0.00028,30]
[327739416,1716411457205,156.19,0.00021589,30]
[327739417,1716411471050,157.052305,0.00028,30]
[327739418,1716411524048,175.15,0.00010426,2]
[327739426,1716411602613,150.0,0.00010426,2]
[327739427,1716411704561,150.1988258,0.00012625,2]
[327739428,1716411705580,1565.2946698,0.00012792,2]
[327739430,1716411905382,150.5,0.00019716,15]
[327739431,1716411905953,150.5,0.00019706,15]
[327739432,1716411906586,150.5,0.00019696,15]
[327739433,1716411917127,320.59,0.00010669,2]
[327739434,1716411921376,156.19,0.00021589,30]
[327739435,1716411959959,10000.0,0.00031,120]
[327739436,1716411995138,10468.49981213,0.000128,2]
[327739437,1716412025659,232.33,0.00019714,15]
[327739440,1716412067824,175.15,9.853e-05,2]
[327739441,1716412089608,250.0,0.00012309,2]
[327739442,1716412144962,232.33,0.00019714,15]
[327739443,1716412160294,10000.0,0.00031,120]
[327739445,1716412191760,559.65628902,0.00012608,2]
[327739446,1716412193241,380.41775474,0.00012646,2]
[327739452,1716412199285,1221.13,0.00012244,2]
[327739453,1716412200998,166.32,0.00012244,2]
[327739455,1716412215726,250.0,0.00012189,2]
[327739458,1716412228305,1000.0,0.00012103,2]
[327739472,1716412232322,-489.06715365,0.00012803,2]
[327739473,1716412232332,-516.40666,0.00012804,2]
[327739474,1716412232343,-155.0,0.00012805,2]
[327739475,1716412232352,-155.0,0.00012806,2]
[327739476,1716412232362,-2147.03523635,0.00012806,2]
[327739477,1716412232373,-944.20511134,0.00012806,2]
[327739478,1716412232383,-274.62982748,0.00012807,2]
[327739479,1716412232396,-940.26284271,0.00012807,2]
[327739480,1716412232406,-402.51276888,0.00012807,2]
[327739481,1716412232415,-4265.71484305,0.00012808,2]
[327739482,1716412232426,-337.59402767,0.00012808,2]
[327739483,1716412232440,-4819.38668455,0.00012808,2]
[327739484,1716412232450,-19501.21005922,0.00012808,2]
[327739485,1716412232461,-653.01402305,0.00012815,2]
[327739486,1716412232471,-150.0,0.00012818,2]
[327739487,1716412232480,-2578.56373318,0.00012819,2]
[327739488,1716412232493,-340.66800286,0.00012819,2]
[327739489,1716412232502,-4.33199714,0.00012824,2]
[327739490,1716412232514,-295.01937542,0.00012824,2]
[327739491,1716412232543,-917.73286464,0.00012824,2]
[327739492,1716412232556,-282.9157628,0.00012824,2]
[327739493,1716412232565,-715.69031979,0.00012895,2]
[327739494,1716412232574,-499.99,0.00012896,2]
[327739495,1716412232584,-298.86994119,0.00012897,2]
[327739496,1716412232593,-1663.08168822,0.00012899,2]
[327739497,1716412232605,-281.19172138,0.00012899,2]
[327739498,1716412232617,-2825.61467163,0.00012899,2]
[327739499,1716412232628,-1729.65438599,0.00012899,2]
[327739502,1716412232639,-1036.78575,0.00012899,2]
[327739509,1716412232681,-1386.768528,0.00012899,2]
[327739534,1716412237818,-13803.8,0.00012899,2]
[327739536,1716412237831,-586.27968751,0.00012899,2]
[327739539,1716412237843,-1625.88280561,0.00012899,2]
[327739541,1716412237854,-479.23585153,0.00012899,2]
[327739543,1716412237865,-1730.9292,0.00012899,2]
[327739545,1716412237877,-1517.50982453,0.00012899,2]
[327739548,1716412237888,-1978.40158812,0.00012899,2]
[327739550,1716412237900,-952.37349748,0.00012899,2]
[327739552,1716412237909,-164.90411866,0.00012899,2]
[327739553,1716412237920,-321.29951797,0.00012899,2]
[327739554,1716412237929,-11082.70254651,0.000129,2]
[327739555,1716412237942,-2444.43865349,0.000129,2]
[327739556,1716412237951,-364.24,0.000129,2]
[327739557,1716412237960,-1002.32,0.000129,2]
[327739558,1716412237970,-320.59,0.00012933,2]
[327739559,1716412237980,-167.07,0.00012967,2]
[327739560,1716412237990,-179.10227388,0.00012989,2]
[327739561,1716412237999,-179.10227388,0.0001299,2]
[327739562,1716412238009,-206.37895308,0.00012997,2]
[327739563,1716412238020,-157.60901587,0.00012997,2]
[327739564,1716412238030,-155.0,0.00012997,2]
[327739565,1716412238044,-206.76817049,0.00012997,2]
[327739566,1716412238055,-160.50372505,0.00012997,2]
[327739568,1716412238065,-172.87876254,0.00012997,2]
[327739570,1716412238077,-155.0,0.00012997,2]
[327739572,1716412238086,-5562.38640349,0.00012997,2]
[327739574,1716412238096,-803.82734863,0.00012997,2]
[327739576,1716412238105,-267.07662316,0.00012997,2]
[327739578,1716412238114,-318.04989705,0.00012997,2]
[327739580,1716412238123,-684.79514313,0.00012997,2]
[327739602,1716412238323,-299.47989512,0.00012997,2]
[327739604,1716412238333,-155.0,0.00012997,2]
[327739606,1716412238343,-306.03142817,0.00012997,2]
[327739608,1716412238352,-782.14748573,0.00012997,2]
[327739610,1716412238362,-2479.51367591,0.00012997,2]
[327739612,1716412238371,-410.2190037,0.00012997,2]
[327739614,1716412238382,-155.08919033,0.00012997,2]
[327739616,1716412238393,-163.09696048,0.00012997,2]
[327739618,1716412238402,-598.4676915,0.00012997,2]
[327739620,1716412238412,-324.60531445,0.00012997,2]
[327739622,1716412238421,-205.39675001,0.00012997,2]
[327739624,1716412238430,-156.27424885,0.00012997,2]
[327739626,1716412238440,-155.76867218,0.00012997,2]
[327739628,1716412238449,-166.00360702,0.00012997,2]
[327739630,1716412238458,-200.41196387,0.00012997,2]
[327739632,1716412238468,-155.87069556,0.00012997,2]
[327739634,1716412238478,-200.84001828,0.00012997,2]
[327739636,1716412238487,-155.25632263,0.00012997,2]
[327739638,1716412238496,-155.0,0.00012997,2]
[327739640,1716412238505,-155.15682615,0.00012997,2]
[327739642,1716412238517,-165.53963886,0.00012997,2]
[327739644,1716412238526,-2000.27992103,0.00012997,2]
[327739646,1716412238537,-181.29788502,0.00012997,2]
[327739648,1716412238547,-221.96329137,0.00012997,2]
[327739650,1716412238556,-285.26513756,0.00012997,2]
[327739652,1716412238565,-1244.65012812,0.00012997,2]
[327739654,1716412238575,-156.18637081,0.00012998,2]
[327739656,1716412238584,-655.82645492,0.00012998,2]
[327739657,1716412238594,-1248.26268845,0.00012998,2]
[327739658,1716412238603,-155.51405521,0.00012998,2]
[327739659,1716412238613,-1064.16497992,0.00012998,2]
[327739660,1716412238622,-285.93045245,0.00012998,2]
[327739661,1716412238631,-688880.23162946,0.00012999,2]
[327739662,1716412238641,-7514.84957995,0.00012999,2]
[327739663,1716412238651,-165.16157463,0.00012999,2]
[327739664,1716412238660,-1159399.51284396,0.00013,2]
[327739665,1716412238669,-172.68941544,0.00013013,2]
[327739666,1716412238678,-162.6514165,0.00013113,2]
[327739667,1716412238687,-5090.82246056,0.00013269,2]
[327739668,1716412238697,-192.05306906,0.00013369,2]
[327739670,1716412238706,-1000.0,0.00013616,2]
[327739672,1716412238715,-2751.0,0.00013699,2]
[327739674,1716412238724,-500.0,0.00013699,2]
[327739676,1716412238734,-3166.01,0.00013699,2]
[327739678,1716412238743,-200.0,0.00013699,2]
[327739680,1716412238752,-2219.83510229,0.00013769,2]
[327739682,1716412238761,-339.21,0.00013973,2]
[327739684,1716412238771,-235.65,0.00013973,2]
[327739686,1716412238781,-155.65,0.00013973,2]
[327739688,1716412238794,-168.33,0.00013973,2]
[327739690,1716412238803,-210.0,0.000141,2]
[327739692,1716412238813,-1574.74538,0.0001411,2]
[327739694,1716412238822,-5090.82246055,0.00014417,2]
[327739696,1716412238832,-1574.74539,0.0001443,2]
[327739698,1716412238842,-1574.74539,0.0001474,2]
[327739700,1716412238852,-1221.13,0.00014984,2]
[327739702,1716412238861,-405.35113642,0.00014999,2]
[327739704,1716412238870,-155.0,0.00015,2]
[327739706,1716412238879,-619.02429447,0.00015,2]
[327739708,1716412238889,-257.72182443,0.00015,2]
[327739710,1716412238898,-62185.92648205,0.00015,2]
[327739712,1716412238907,-200.0,0.00015,2]
[327739714,1716412238917,-1574.74539,0.0001506,2]
[327739717,1716412238926,-300.0,0.00015068,2]
[327739719,1716412238935,-1000.0,0.00015129,2]
[327739720,1716412238944,-320.59,0.00015196,2]
[327739723,1716412238954,-1574.74539,0.0001537,2]
[327739724,1716412238963,-321.29951795,0.00015499,2]